fUST/lending_fUST_20240720
["ID","MTS","AMOUNT","RATE_DAILY","PERIOD"]
[332675104,1721421039819,-906.56,0.00016438,2]
[332675105,1721421039829,-876.95,0.00016438,2]
[332675106,1721421039838,-500.0,0.00016438,2]
[332675107,1721421039848,-450.57053984,0.00016438,2]
[332675108,1721421039857,-500.0,0.00016438,2]
[332675109,1721421039867,-500.0,0.00016438,2]
[332675110,1721421039878,-1078.6,0.00016438,2]
[332675111,1721421039887,-500.0,0.00016438,2]
[332675112,1721421039900,-694.28,0.00016438,2]
[332675113,1721421039909,-894.03,0.00016438,2]
[332675114,1721421039919,-577.02,0.00016438,2]
[332675115,1721421039928,-500.0,0.00016438,2]
[332675116,1721421039937,-2254.54,0.00016438,2]
[332675117,1721421039946,-500.0,0.00016438,2]
[332675118,1721421039956,-515.1428973,0.00016438,2]
[332675119,1721421039965,-500.0,0.00016438,2]
[332675120,1721421039976,-358.23991,0.00016438,2]
[332675121,1721421039987,-500.0,0.00016438,2]
[332675122,1721421039996,-500.0,0.00016438,2]
[332675123,1721421040008,-500.0,0.00016438,2]
[332675124,1721421040018,-669.1,0.00016438,2]
[332675125,1721421040029,-500.0,0.00016438,2]
[332675126,1721421040040,-501.95108344,0.00016438,2]
[332675127,1721421040050,-340.63638274,0.00016438,2]
[332675128,1721421040059,-1237.8,0.00016438,2]
[332675129,1721421040069,-747.57,0.00016438,2]
[332675130,1721421040079,-500.0,0.00016438,2]
[332675131,1721421040088,-421.31142735,0.00016438,2]
[332675132,1721421040098,-710.5,0.00016438,2]
[332675133,1721421040108,-500.0,0.00016438,2]
[332675134,1721421040119,-500.0,0.00016438,2]
[332675135,1721421040131,-2314.18,0.00016438,2]
[332675136,1721421040141,-631.78,0.00016438,2]
[332675137,1721421040150,-500.0,0.00016438,2]
[332675138,1721421040159,-500.0,0.00016438,2]
[332675139,1721421040169,-1363.12,0.00016438,2]
[332675140,1721421040181,-500.0,0.00016438,2]
[332675141,1721421040190,-500.0,0.00016438,2]
[332675142,1721421040203,-500.0,0.00016438,2]
[332675143,1721421040213,-327.51002048,0.00016438,2]
[332675144,1721421040225,-515.29099751,0.00016438,2]
[332675145,1721421040236,-421.71656142,0.00016438,2]
[332675146,1721421040246,-500.0,0.00016438,2]
[332675147,1721421040256,-500.0,0.00016438,2]
[332675148,1721421040265,-588.01,0.00016438,2]
[332675149,1721421040277,-500.0,0.00016438,2]
[332675150,1721421040287,-500.0,0.00016438,2]
[332675151,1721421040297,-500.0,0.00016438,2]
[332675152,1721421040306,-500.0,0.00016438,2]
[332675153,1721421040316,-500.0,0.00016438,2]
[332675154,1721421040327,-500.0,0.00016438,2]
[332675155,1721421040337,-1157.1,0.00016438,2]
[332675156,1721421040347,-500.0,0.00016438,2]
[332675157,1721421040357,-500.0,0.00016438,2]
[332675158,1721421040367,-500.0,0.00016438,2]
[332675159,1721421040378,-4247.94,0.00016438,2]
[332675160,1721421040388,-819.34,0.00016438,2]
[332675161,1721421040398,-500.0,0.00016438,2]
[332675162,1721421040409,-2640.14,0.00016438,2]
[332675163,1721421040418,-500.0,0.00016438,2]
[332675164,1721421040428,-1504.61,0.00016438,2]
[332675165,1721421040438,-500.0,0.00016438,2]
[332675166,1721421040449,-604.83812855,0.00016438,2]
[332675167,1721421040461,-500.0,0.00016438,2]
[332675168,1721421040471,-526.47,0.00016438,2]
[332675169,1721421040481,-500.0,0.00016438,2]
[332675170,1721421040491,-500.0,0.00016438,2]
[332675171,1721421040500,-750.98,0.00016438,2]
[332675172,1721421040511,-659.51,0.00016438,2]
[332675173,1721421040520,-505.37477536,0.00016438,2]
[332675174,1721421040530,-500.01,0.00016438,2]
[332675175,1721421040540,-500.0,0.00016438,2]
[332675176,1721421040549,-544.44,0.00016438,2]
[332675177,1721421040558,-500.0,0.00016438,2]
[332675178,1721421040568,-1746.36,0.00016438,2]
[332675179,1721421040577,-500.0,0.00016438,2]
[332675180,1721421040587,-500.0,0.00016438,2]
[332675181,1721421040596,-500.0,0.00016438,2]
[332675182,1721421040607,-500.0,0.00016438,2]
[332675183,1721421040617,-500.0,0.00016438,2]
[332675184,1721421040628,-500.0,0.00016438,2]
[332675185,1721421040639,-500.0,0.00016438,2]
[332675186,1721421040650,-500.0,0.00016438,2]
[332675187,1721421040660,-500.0,0.00016438,2]
[332675188,1721421040669,-500.0,0.00016438,2]
[332675189,1721421040679,-565.67,0.00016438,2]
[332675190,1721421040689,-500.0,0.00016438,2]
[332675191,1721421040698,-500.0,0.00016438,2]
[332675192,1721421040707,-1758.73,0.00016438,2]
[332675193,1721421040717,-1041.89,0.00016438,2]
[332675194,1721421040726,-500.0,0.00016438,2]
[332675195,1721421040735,-767.24,0.00016438,2]
[332675196,1721421040744,-573.38,0.00016438,2]
[332675197,1721421040753,-498.87232176,0.00016438,2]
[332675198,1721421040762,-500.0,0.00016438,2]
[332675199,1721421040772,-508.75229527,0.00016438,2]
[332675200,1721421040782,-501.1559506,0.00016438,2]
[332675201,1721421040791,-2741.57,0.00016438,2]
[332675202,1721421040801,-159.60804227,0.00016438,2]
[332675203,1721421040810,-500.0,0.00016438,2]
[332675204,1721421040819,-500.0,0.00016438,2]
[332675205,1721421040829,-500.0,0.00016438,2]
[332675206,1721421040840,-500.0,0.00016438,2]
[332675207,1721421040850,-500.0,0.00016438,2]
[332675208,1721421040859,-500.0,0.00016438,2]
[332675209,1721421040870,-559.8459662,0.00016438,2]
[332675210,1721421040879,-500.0,0.00016438,2]
[332675211,1721421040890,-500.0,0.00016438,2]
[332675212,1721421040901,-1220.86,0.00016438,2]
[332675213,1721421040910,-500.0,0.00016438,2]
[332675214,1721421040920,-500.0,0.00016438,2]
[332675215,1721421040932,-816.81,0.00016438,2]
[332675216,1721421040943,-500.0,0.00016438,2]
[332675217,1721421040952,-500.0,0.00016438,2]
[332675218,1721421040961,-507.65192313,0.00016438,2]
[332675219,1721421040971,-2676.01,0.00016438,2]
[332675220,1721421040982,-500.0,0.00016438,2]
[332675221,1721421040992,-500.0,0.00016438,2]
[332675222,1721421041001,-500.0,0.00016438,2]
[332675223,1721421041012,-500.0,0.00016438,2]
[332675224,1721421041021,-500.0,0.00016438,2]
[332675225,1721421041030,-500.0,0.00016438,2]
[332675226,1721421041040,-500.0,0.00016438,2]
[332675227,1721421041050,-500.0,0.00016438,2]
[332675228,1721421041060,-500.0,0.00016438,2]
[332675229,1721421041070,-500.0,0.00016438,2]
[332675230,1721421041080,-500.0,0.00016438,2]
[332675231,1721421041091,-500.0,0.00016438,2]
[332675232,1721421041102,-500.0,0.00016438,2]
[332675233,1721421041111,-500.0,0.00016438,2]
[332675234,1721421041124,-500.0,0.00016438,2]
[332675235,1721421041134,-500.0,0.00016438,2]
[332675236,1721421041143,-1778.57,0.00016438,2]
[332675237,1721421041153,-500.0,0.00016438,2]
[332675238,1721421041162,-303.81359652,0.00016438,2]
[332675239,1721421041175,-711.51,0.00016438,2]
[332675240,1721421041185,-506.21244331,0.00016438,2]
[332675241,1721421041196,-500.0,0.00016438,2]
[332675242,1721421041208,-500.0,0.00016438,2]
[332675243,1721421041217,-1650.71,0.00016438,2]
[332675244,1721421041227,-1987.33,0.00016438,2]
[332675245,1721421041236,-902.76,0.00016438,2]
[332675246,1721421041246,-500.0,0.00016438,2]
[332675247,1721421041255,-500.0,0.00016438,2]
[332675248,1721421041266,-500.0,0.00016438,2]
[332675249,1721421041275,-500.0,0.00016438,2]
[332675250,1721421041287,-500.0,0.00016438,2]
[332675251,1721421041299,-500.0,0.00016438,2]
[332675252,1721421041309,-2069.67,0.00016438,2]
[332675253,1721421041320,-758.08,0.00016438,2]
[332675254,1721421041330,-500.0,0.00016438,2]
[332675255,1721421041341,-989.32,0.00016438,2]
[332675256,1721421041350,-500.0,0.00016438,2]
[332675257,1721421041360,-500.0,0.00016438,2]
[332675258,1721421041370,-500.0,0.00016438,2]
[332675259,1721421041379,-500.0,0.00016438,2]
[332675260,1721421041388,-500.0,0.00016438,2]
[332675261,1721421041398,-500.0,0.00016438,2]
[332675262,1721421041408,-500.0,0.00016438,2]
[332675263,1721421041417,-500.0,0.00016438,2]
[332675264,1721421041427,-500.0,0.00016438,2]
[332675265,1721421041436,-1413.96,0.00016438,2]
[332675266,1721421041445,-1570.39,0.00016438,2]
[332675267,1721421041455,-500.0,0.00016438,2]
[332675268,1721421041465,-1882.02,0.00016438,2]
[332675269,1721421041474,-500.0,0.00016438,2]
[332675270,1721421041484,-507.0,0.00016438,2]
[332675271,1721421041493,-500.0,0.00016438,2]
[332675272,1721421041502,-500.0,0.00016438,2]
[332675273,1721421041511,-216.59917431,0.00016438,2]
[332675274,1721421041521,-777.72,0.00016438,2]
[332675275,1721421041531,-500.0,0.00016438,2]
[332675276,1721421041542,-1717.33,0.00016438,2]
[332675277,1721421041551,-604.61388818,0.00016438,2]
[332675278,1721421041561,-500.0,0.00016438,2]
[332675280,1721421041571,-176.76189301,0.00016438,2]
[332675281,1721421041580,-500.0,0.00016438,2]
[332675282,1721421041590,-539.0,0.00016438,2]
[332675283,1721421041599,-500.0,0.00016438,2]
[332675284,1721421041608,-500.0,0.00016438,2]
[332675285,1721421041618,-500.0,0.00016438,2]
[332675287,1721421041628,-500.0,0.00016438,2]
[332675288,1721421041637,-500.0,0.00016438,2]
[332675289,1721421041647,-500.0,0.00016438,2]
[332675290,1721421041656,-500.0,0.00016438,2]
[332675291,1721421041666,-500.0,0.00016438,2]
[332675292,1721421041675,-500.0,0.00016438,2]
[332675293,1721421041684,-500.0,0.00016438,2]
[332675294,1721421041693,-500.0,0.00016438,2]
[332675295,1721421041702,-500.0,0.00016438,2]
[332675296,1721421041711,-500.0,0.00016438,2]
[332675297,1721421041720,-500.0,0.00016438,2]
[332675298,1721421041730,-500.0,0.00016438,2]
[332675299,1721421041740,-500.0,0.00016438,2]
[332675300,1721421041749,-500.0,0.00016438,2]
[332675301,1721421041758,-500.0,0.00016438,2]
[332675302,1721421041767,-500.0,0.00016438,2]
[332675303,1721421041777,-531.04,0.00016438,2]
[332675304,1721421041786,-500.0,0.00016438,2]
[332675305,1721421041795,-500.0,0.00016438,2]
[332675306,1721421041804,-1568.71,0.00016438,2]
[332675307,1721421041813,-500.0,0.00016438,2]
[332675308,1721421041822,-500.0,0.00016438,2]
[332675309,1721421041832,-742.44,0.00016438,2]
[332675310,1721421041841,-500.0,0.00016438,2]
[332675311,1721421041850,-1117.17,0.00016438,2]
[332675312,1721421041859,-502.41604891,0.00016438,2]
[332675313,1721421041870,-500.0,0.00016438,2]
[332675314,1721421041879,-504.76180352,0.00016438,2]
[332675315,1721421041888,-617.70578733,0.00016438,2]
[332675316,1721421041897,-2008.23,0.00016438,2]
[332675317,1721421041906,-526.23,0.00016438,2]
[332675318,1721421041915,-500.0,0.00016438,2]
[332675319,1721421041925,-500.0,0.00016438,2]
[332675320,1721421041934,-500.0,0.00016438,2]
[332675321,1721421041945,-1127.51,0.00016438,2]
[332675322,1721421041955,-837.49,0.00016438,2]
[332675323,1721421041964,-4081.44,0.00016438,2]
[332675324,1721421041973,-926.62,0.00016438,2]
[332675325,1721421041982,-500.0,0.00016438,2]
[332675326,1721421041991,-500.0,0.00016438,2]
[332675327,1721421042000,-1208.03,0.00016438,2]
[332675328,1721421042009,-500.0,0.00016438,2]
[332675329,1721421042019,-510.37,0.00016438,2]
[332675330,1721421042027,-768.5,0.00016438,2]
[332675331,1721421042036,-500.0,0.00016438,2]
[332675332,1721421042045,-500.45278086,0.00016438,2]
[332675333,1721421042054,-926.13,0.00016438,2]
[332675334,1721421042063,-512.79557727,0.00016438,2]
[332675335,1721421042072,-1018.83,0.00016438,2]
[332675336,1721421042081,-500.0,0.00016438,2]
[332675337,1721421042090,-500.0,0.00016438,2]
[332675338,1721421042100,-263.12112292,0.00016438,2]
[332675339,1721421042109,-500.0,0.00016438,2]
[332675340,1721421042119,-652.34,0.00016438,2]
[332675341,1721421042131,-756.06,0.00016438,2]
[332675342,1721421042140,-500.0,0.00016438,2]
[332675343,1721421042149,-500.0,0.00016438,2]
[332675344,1721421042159,-500.0,0.00016438,2]
[332675345,1721421042169,-1040.88,0.00016438,2]
[332675346,1721421042178,-500.0,0.00016438,2]
[332675347,1721421042187,-500.0,0.00016438,2]
[332675348,1721421042196,-500.0,0.00016438,2]
[332675349,1721421042207,-500.0,0.00016438,2]
[332675350,1721421042217,-634.34,0.00016438,2]
[332675351,1721421042226,-358.749569,0.00016438,2]
[332675352,1721421042235,-358.749569,0.00016438,2]
[332675353,1721421042244,-358.749569,0.00016438,2]
[332675354,1721421042254,-358.749569,0.00016438,2]
[332675355,1721421042263,-358.749569,0.00016438,2]
[332675356,1721421042273,-358.749569,0.00016438,2]
[332675357,1721421042282,-358.749569,0.00016438,2]
[332675358,1721421042291,-358.749569,0.00016438,2]
[332675359,1721421042301,-358.749569,0.00016438,2]
[332675360,1721421042310,-358.749569,0.00016438,2]
[332675361,1721421042319,-358.749569,0.00016438,2]
[332675362,1721421042329,-358.749569,0.00016438,2]
[332675363,1721421042338,-176.98284728,0.00016438,2]
[332675364,1721421042347,-358.749569,0.00016438,2]
[332675365,1721421042356,-358.749569,0.00016438,2]
[332675366,1721421042366,-500.0,0.00016438,2]
[332675367,1721421042376,-358.749569,0.00016438,2]
[332675368,1721421042385,-358.749569,0.00016438,2]
[332675369,1721421042394,-358.749569,0.00016438,2]
[332675371,1721421042403,-358.749569,0.00016438,2]
[332675372,1721421042413,-358.749569,0.00016438,2]
[332675375,1721421042421,-358.74956,0.00016438,2]
[332675377,1721421042431,-500.0,0.00016438,2]
[332675380,1721421042440,-2146.89,0.00016438,2]
[332675381,1721421042449,-500.0,0.00016438,2]
[332675382,1721421042458,-10980.07,0.00016438,2]
[332675384,1721421042467,-509.46276478,0.00016438,2]
[332675386,1721421042476,-500.0,0.00016438,2]
[332675388,1721421042486,-500.0,0.00016438,2]
[332675390,1721421042495,-500.0,0.00016438,2]
[332675392,1721421042505,-895.79,0.00016438,2]
[332675394,1721421042514,-500.0,0.00016438,2]
[332675396,1721421042524,-634.08,0.00016438,2]
[332675398,1721421042533,-792.11,0.00016438,2]
[332675399,1721421042542,-2884.97,0.00016438,2]
[332675400,1721421042551,-723.13,0.00016438,2]
[332675401,1721421042561,-500.0,0.00016438,2]
[332675402,1721421042570,-500.0,0.00016438,2]
[332675403,1721421042579,-151.0,0.00016438,2]
[332675404,1721421042589,-151.0,0.00016438,2]
[332675405,1721421042598,-151.0,0.00016438,2]
[332675406,1721421042607,-151.0,0.00016438,2]
[332675407,1721421042616,-4642.64041421,0.00016438,2]
[332675408,1721421042653,-3208.16958579,0.00016438,2]
[332675409,1721421042662,-500.0,0.00016438,2]
[332675410,1721421042671,-287.72879771,0.00016438,2]
[332675411,1721421042698,-212.27120229,0.00016438,2]
[332675412,1721421042708,-500.0,0.00016438,2]
[332675413,1721421042717,-500.0,0.00016438,2]
[332675414,1721421042726,-2362.5,0.00016438,2]
[332675415,1721421042736,-802.08,0.00016438,2]
[332675416,1721421042745,-500.0,0.00016438,2]
[332675417,1721421042754,-504.12546019,0.00016438,2]
[332675418,1721421042764,-500.0,0.00016438,2]
[332675419,1721421042774,-500.0,0.00016438,2]
[332675420,1721421042784,-513.18244544,0.00016438,2]
[332675421,1721421042793,-500.0,0.00016438,2]
[332675422,1721421042802,-500.0,0.00016438,2]
[332675423,1721421042812,-500.0,0.00016438,2]
[332675424,1721421042822,-735.89,0.00016438,2]
[332675425,1721421042831,-500.0,0.00016438,2]
[332675426,1721421042842,-4298.87,0.00016438,2]
[332675427,1721421042851,-500.0,0.00016438,2]
[332675428,1721421042860,-500.0,0.00016438,2]
[332675429,1721421042870,-511.38675396,0.00016438,2]
[332675430,1721421042880,-2447.67,0.00016438,2]
[332675431,1721421042889,-500.0,0.00016438,2]
[332675432,1721421042899,-500.0,0.00016438,2]
[332675433,1721421042908,-500.0,0.00016438,2]
[332675434,1721421042917,-500.0,0.00016438,2]
[332675435,1721421042927,-500.0,0.00016438,2]
[332675436,1721421042937,-500.0,0.00016438,2]
[332675437,1721421042946,-500.0,0.00016438,2]
[332675438,1721421042955,-500.0,0.00016438,2]
[332675439,1721421042965,-500.0,0.00016438,2]
[332675440,1721421042974,-500.0,0.00016438,2]
[332675441,1721421042984,-500.0,0.00016438,2]
[332675442,1721421042993,-500.0,0.00016438,2]
[332675443,1721421043003,-500.0,0.00016438,2]
[332675444,1721421043015,-500.0,0.00016438,2]
[332675445,1721421043024,-500.0,0.00016438,2]
[332675446,1721421043034,-1344.2,0.00016438,2]
[332675447,1721421043044,-500.0,0.00016438,2]
[332675448,1721421043053,-1264.78,0.00016438,2]
[332675449,1721421043063,-500.0,0.00016438,2]
[332675450,1721421043072,-608.17,0.00016438,2]
[332675451,1721421043081,-500.0,0.00016438,2]
[332675452,1721421043090,-507.46979898,0.00016438,2]
[332675453,1721421043100,-501.97715973,0.00016438,2]
[332675454,1721421043109,-500.0,0.00016438,2]
[332675455,1721421043120,-500.0,0.00016438,2]
[332675456,1721421043136,-500.83390528,0.00016438,2]
[332675457,1721421043147,-4925.94,0.00016438,2]
[332675458,1721421043158,-714.9,0.00016438,2]
[332675459,1721421043167,-500.0,0.00016438,2]
[332675460,1721421043177,-500.0,0.00016438,2]
[332675461,1721421043186,-500.0,0.00016438,2]
[332675462,1721421043195,-500.0,0.00016438,2]
[332675463,1721421043205,-500.0,0.00016438,2]
[332675464,1721421043214,-500.0,0.00016438,2]
[332675465,1721421043224,-501.73402491,0.00016438,2]
[332675466,1721421043233,-500.0,0.00016438,2]
[332675467,1721421043243,-500.0,0.00016438,2]
[332675468,1721421043252,-502.85162254,0.00016438,2]
[332675469,1721421043261,-500.0,0.00016438,2]
[332675470,1721421043270,-3881.27,0.00016438,2]
[332675471,1721421043279,-1939.56,0.00016438,2]
[332675472,1721421043290,-502.03563683,0.00016438,2]
[332675473,1721421043299,-684.23,0.00016438,2]
[332675474,1721421043309,-500.0,0.00016438,2]
[332675475,1721421043318,-556.28,0.00016438,2]
[332675476,1721421043327,-2559.1,0.00016438,2]
[332675477,1721421043337,-525.43425346,0.00016438,2]
[332675478,1721421043347,-500.0,0.00016438,2]
[332675479,1721421043356,-500.0,0.00016438,2]
[332675480,1721421043366,-500.0,0.00016438,2]
[332675481,1721421043377,-3643.74,0.00016438,2]
[332675482,1721421043387,-947.83,0.00016438,2]
[332675483,1721421043396,-500.0,0.00016438,2]
[332675484,1721421043406,-510.65940313,0.00016438,2]
[332675485,1721421043415,-2244.92,0.00016438,2]
[332675486,1721421043424,-510.62201301,0.00016438,2]
[332675487,1721421043434,-500.0,0.00016438,2]
[332675488,1721421043443,-500.0,0.00016438,2]
[332675489,1721421043452,-500.0,0.00016438,2]
[332675490,1721421043461,-500.0,0.00016438,2]
[332675491,1721421043471,-502.37731771,0.00016438,2]
[332675492,1721421043481,-500.0,0.00016438,2]
[332675493,1721421043490,-1686.28,0.00016438,2]
[332675494,1721421043499,-629.06,0.00016438,2]
[332675495,1721421043508,-9889.28,0.00016438,2]
[332675496,1721421043517,-950.95,0.00016438,2]
[332675497,1721421043527,-500.0,0.00016438,2]
[332675498,1721421043536,-683.81,0.00016438,2]
[332675499,1721421043546,-80.20100065,0.00016438,2]
[332675509,1721421064591,375.92190244,0.0001212,2]
[332675510,1721421071994,530.3699979,0.0001212,2]
[332675511,1721421072015,160.28480632,0.0001212,2]
[332675512,1721421072040,250.0,0.0001212,2]
[332675513,1721421072061,245.0,0.0001212,2]
[332675514,1721421072083,207.29623892,0.0001212,2]
[332675515,1721421072138,560.34123854,0.0001212,2]
[332675516,1721421072625,566.0727566,0.0001212,2]
[332675517,1721421076956,196.69288893,0.0001212,2]
[332675518,1721421078226,3916.8211292,0.0001212,2]
[332675519,1721421080139,402.51001547,0.0001212,7]
[332675520,1721421081069,162.83052943,0.0001212,2]
[332675521,1721421086518,19.36789916,0.0001212,2]
[332675522,1721421086543,10691.60967702,0.0001212,2]
[332675523,1721421089621,846.85908442,0.0001212,2]
[332675526,1721421137504,154.80649189,9.999e-05,2]
[332675527,1721421154449,154.82195475,9.999e-05,2]
[332675528,1721421155657,160.29178637,9.999e-05,2]
[332675529,1721421158496,212.15815895,9.999e-05,2]
[332675541,1721421917643,290.01097768,0.0001,2]
[332675542,1721421981506,155.41772684,9.999e-05,2]
[332675543,1721421990355,154.82195475,9.999e-05,2]
[332675545,1721422033160,-1532.4249561,0.0001437,2]
[332675546,1721422033185,-250.0,0.00014531,2]
[332675547,1721422033207,-250.0,0.00014571,2]
[332675548,1721422033230,-250.0,0.00014611,2]
[332675549,1721422033253,-250.0,0.0001465,2]
[332675550,1721422033276,-250.0,0.0001469,2]
[332675551,1721422033299,-250.0,0.0001473,2]
[332675552,1721422033323,-250.0,0.0001477,2]
[332675553,1721422033348,-166.666666,0.00014795,2]
[332675554,1721422033371,-250.0,0.0001481,2]
[332675555,1721422033394,-250.0,0.0001485,2]
[332675556,1721422033420,-250.0,0.0001489,2]
[332675557,1721422033445,-250.0,0.0001493,2]
[332675558,1721422033470,-250.0,0.00014969,2]
[332675559,1721422033495,-1107.38930569,0.00015,2]
[332675560,1721422033520,-250.0,0.00015009,2]
[332675561,1721422033545,-22.195236,0.00015049,2]
[332675562,1721422042164,-227.804764,0.00015049,2]
[332675563,1721422042188,-40.99810929,0.00015089,2]
[332675565,1721422085894,399.68,0.00010959,2]
[332675566,1721422102646,208.46306467,9.999e-05,2]
[332675567,1721422140673,155.52806274,9.999e-05,2]
[332675568,1721422149137,208.46306467,0.0001212,2]
[332675569,1721422157206,-493.11493024,0.00015,2]
[332675570,1721422157230,-209.00189071,0.00015089,2]
[332675571,1721422157253,-250.0,0.00015129,2]
[332675572,1721422157302,-153.8685409,0.00015169,2]
[332675573,1721422161113,-96.1314591,0.00015169,2]
[332675574,1721422161136,-250.0,0.00015209,2]
[332675575,1721422161160,-250.0,0.00015248,2]
[332675576,1721422161184,-250.0,0.00015288,2]
[332675577,1721422186302,251.4190689,0.00015137,2]
[332675579,1721422209402,208.46306467,0.00010959,2]
[332675580,1721422209425,124.59693533,0.00010959,2]
[332675596,1721422232022,-45.8539161,0.00015137,2]
[332675597,1721422232031,-2137.43178425,0.00015751,2]
[332675598,1721422232041,-300.0,0.00015752,2]
[332675599,1721422232051,-206.5463282,0.00015753,2]
[332675600,1721422232061,-206.5463282,0.00015753,2]
[332675601,1721422232070,-206.5463282,0.00015753,2]
[332675602,1721422232080,-206.5463282,0.00015753,2]
[332675603,1721422232089,-206.5463282,0.00015753,2]
[332675604,1721422232098,-206.5463282,0.00015753,2]
[332675605,1721422232107,-206.5463282,0.00015753,2]
[332675606,1721422232117,-413.0129259,0.00015753,2]
[332675607,1721422232126,-208.31985265,0.00015753,2]
[332675638,1721422238056,-164.89314355,0.00015753,2]
[332675640,1721422238067,-206.5463282,0.00015753,2]
[332675642,1721422238077,-153.0,0.000158,2]
[332675645,1721422238087,-22.94257985,0.000158,2]
[332675646,1721422238114,-201.98885575,0.000158,2]
[332675649,1721422238124,-153.0,0.00015878,2]
[332675651,1721422238133,-293.756678,0.0001589,2]
[332675653,1721422238144,-153.0,0.0001589,2]
[332675655,1721422238153,-206.5463282,0.000159,2]
[332675657,1721422238164,-153.0,0.000159,2]
[332675659,1721422238174,-293.756678,0.000159,2]
[332675661,1721422238185,-206.5463282,0.000159,2]
[332675663,1721422238197,-485.53311547,0.00015954,2]
[332675719,1721422240938,-41.15219744,0.00015954,2]
[332675720,1721422240949,-153.0,0.00016078,2]
[332675721,1721422240959,-367.2522507,0.00016202,2]
[332675722,1721422240969,-293.756678,0.000163,2]
[332675723,1721422240979,-153.0,0.000163,2]
[332675724,1721422240988,-206.5463282,0.000163,2]
[332675726,1721422240998,-4000.0,0.00016328,2]
[332675727,1721422241007,-4000.0,0.00016331,2]
[332675728,1721422241018,-4000.0,0.00016333,2]
[332675730,1721422241029,-4000.0,0.00016336,2]
[332675731,1721422241040,-4000.0,0.00016338,2]
[332675732,1721422241050,-2126.82263463,0.00016338,2]
[332675733,1721422241060,-3697.11405396,0.00016338,2]
[332675734,1721422241070,-993.708044,0.00016347,2]
[332675735,1721422241081,-5302.51874707,0.00016422,2]
[332675736,1721422241092,-160.28480632,0.00016427,2]
[332675737,1721422241102,-19992.01238072,0.00016428,2]
[332675825,1721422254234,98.76198166,0.00013283,2]
[332675826,1721422254257,56.45716963,0.00013283,2]
[332675828,1721422265062,156.27535265,0.00013283,2]
[332675830,1721422273053,32.83732053,0.00013283,2]
[332675831,1721422273076,181.62591874,0.00013283,2]
[332675832,1721422273099,245.0,0.00013283,2]
[332675833,1721422273122,189.05910374,0.00013283,2]
[332675834,1721422273145,1473.95163632,0.00013283,2]
[332675835,1721422273887,1250.64779312,0.00013283,2]
[332675836,1721422282992,655.7588794,0.000136,2]
[332675837,1721422287668,189.81097834,0.00013283,2]
[332675838,1721422292391,461.35,0.00010959,2]
[332675839,1721422302935,384.46,0.00010959,2]
[332675840,1721422313668,320.38,0.00010959,2]
[332675842,1721422324402,266.99,0.00010959,2]
[332675843,1721422334714,222.49,0.00010959,2]
[332675844,1721422345295,185.41,0.00010959,2]
[332675845,1721422355939,154.5,0.00010959,2]
[332675846,1721422366456,772.55,0.00010959,2]
[332675847,1721422477343,208.46306467,0.00013283,2]
[332675849,1721422955674,374.68623665,9.999e-05,2]
[332675851,1721423114557,1000.0,0.0001212,2]